fUSD/lending_fUSD_20241101
["ID","MTS","AMOUNT","RATE_DAILY","PERIOD"]
[341150322,1730476233328,-426.9397,0.00041355,2]
[341150323,1730476233337,-500.0,0.00041369,3]
[341150324,1730476233347,-500.0,0.00041369,3]
[341150325,1730476233356,-500.0,0.00041369,3]
[341150326,1730476233369,-964.0,0.00041369,3]
[341150327,1730476233378,-500.0,0.00041369,3]
[341150328,1730476233388,-318.82447238,0.00041369,3]
[341150329,1730476233397,-500.0,0.00041369,3]
[341150330,1730476233407,-500.0,0.00041369,3]
[341150331,1730476233420,-500.0,0.00041369,3]
[341150332,1730476233429,-500.0,0.00041369,3]
[341150333,1730476233438,-500.0,0.00041369,3]
[341150334,1730476233448,-500.0,0.00041369,3]
[341150335,1730476233458,-500.0,0.00041369,3]
[341150336,1730476233467,-500.0,0.00041369,3]
[341150337,1730476233477,-500.0,0.00041369,3]
[341150338,1730476233487,-500.0,0.00041369,3]
[341150339,1730476233498,-500.0,0.00041369,3]
[341150340,1730476233507,-500.0,0.00041369,3]
[341150341,1730476233517,-500.0,0.00041369,3]
[341150342,1730476233526,-547.20286869,0.00041369,3]
[341150343,1730476233536,-1779.09,0.00041369,3]
[341150344,1730476233545,-500.0,0.00041369,3]
[341150345,1730476233554,-835.64,0.00041369,3]
[341150346,1730476233564,-799.67,0.00041386,2]
[341150347,1730476233573,-213.53,0.00041386,61]
[341150348,1730476233583,-246.94,0.00041455,30]
[341150349,1730476233593,-205.78,0.00041455,30]
[341150350,1730476233602,-1839.60137932,0.00041455,30]
[341150351,1730476233615,-286.26757891,0.00041455,30]
[341150352,1730476233624,-100000.0,0.00041465,2]
[341150353,1730476233633,-561.1657,0.00041476,2]
[341150354,1730476233643,-500.0,0.00041643,3]
[341150355,1730476233653,-500.0,0.00041643,3]
[341150356,1730476233662,-500.0,0.00041643,3]
[341150357,1730476233672,-964.0,0.00041643,3]
[341150358,1730476233681,-500.0,0.00041643,3]
[341150359,1730476233691,-500.0,0.00041643,3]
[341150360,1730476233700,-500.0,0.00041643,3]
[341150361,1730476233710,-564.0702269,0.00041643,3]
[341150362,1730476233719,-500.0,0.00041643,3]
[341150363,1730476233728,-500.0,0.00041643,3]
[341150364,1730476233738,-500.0,0.00041643,3]
[341150365,1730476233747,-500.0,0.00041643,3]
[341150366,1730476233757,-500.0,0.00041643,3]
[341150367,1730476233768,-500.0,0.00041643,3]
[341150368,1730476233777,-500.0,0.00041643,3]
[341150369,1730476233787,-500.0,0.00041643,3]
[341150370,1730476233796,-1779.09,0.00041643,3]
[341150371,1730476233805,-500.0,0.00041643,3]
[341150372,1730476233815,-835.64,0.00041643,3]
[341150373,1730476233825,-180.0,0.00041785,120]
[341150374,1730476233835,-150.0,0.00041798,2]
[341150375,1730476233844,-163.43,0.00041896,2]
[341150376,1730476233853,-255.65,0.00041917,3]
[341150377,1730476233866,-514.7,0.00041917,3]
[341150378,1730476233876,-500.0,0.00041917,3]
[341150379,1730476233885,-964.0,0.00041917,3]
[341150380,1730476233895,-500.0,0.00041917,3]
[341150381,1730476233905,-578.92,0.00041917,3]
[341150382,1730476233914,-258.51,0.00041917,3]
[341150383,1730476233924,-500.0,0.00041917,3]
[341150384,1730476233933,-500.0,0.00041917,3]
[341150385,1730476233943,-500.0,0.00041917,3]
[341150386,1730476233952,-641.47,0.00041917,3]
[341150387,1730476233962,-500.0,0.00041917,3]
[341150388,1730476233971,-500.0,0.00041917,3]
[341150389,1730476233980,-1779.09,0.00041917,3]
[341150390,1730476233989,-500.0,0.00041917,3]
[341150391,1730476234000,-835.64,0.00041917,3]
[341150392,1730476234009,-583.636,0.00042088,2]
[341150393,1730476234019,-2903.0,0.00042088,2]
[341150394,1730476234028,-812.0,0.00042088,2]
[341150395,1730476234036,-812.673,0.00042088,2]
[341150396,1730476234045,-156.646,0.00042088,2]
[341150397,1730476234054,-150.0,0.00042088,2]
[341150398,1730476234063,-500.0,0.00042191,3]
[341150399,1730476234073,-964.0,0.00042191,3]
[341150400,1730476234082,-500.0,0.00042191,3]
[341150401,1730476234092,-500.0,0.00042191,3]
[341150402,1730476234101,-500.0,0.00042191,3]
[341150403,1730476234110,-500.0,0.00042191,3]
[341150404,1730476234123,-500.0,0.00042191,3]
[341150405,1730476234132,-1779.09,0.00042191,3]
[341150406,1730476234142,-500.0,0.00042191,3]
[341150407,1730476234152,-835.64,0.00042191,3]
[341150408,1730476234161,-3381.66583457,0.00042196,15]
[341150409,1730476234170,-500.0,0.00042465,3]
[341150410,1730476234179,-964.0,0.00042465,3]
[341150411,1730476234189,-500.0,0.00042465,3]
[341150412,1730476234199,-500.0,0.00042465,3]
[341150413,1730476234208,-500.0,0.00042465,3]
[341150414,1730476234217,-500.0,0.00042465,3]
[341150415,1730476234226,-500.0,0.00042465,3]
[341150416,1730476234236,-1779.09,0.00042465,3]
[341150417,1730476234246,-500.0,0.00042465,3]
[341150418,1730476234256,-835.64,0.00042465,3]
[341150419,1730476234265,-177.7,0.00042494,120]
[341150420,1730476234274,-323.376,0.0004258,30]
[341150421,1730476234284,-276.26,0.0004271,2]
[341150422,1730476234293,-500.0,0.00042739,3]
[341150423,1730476234302,-964.0,0.00042739,3]
[341150424,1730476234311,-500.0,0.00042739,3]
[341150425,1730476234320,-500.0,0.00042739,3]
[341150426,1730476234329,-500.0,0.00042739,3]
[341150427,1730476234485,-500.0,0.00042739,3]
[341150428,1730476234495,-500.0,0.00042739,3]
[341150429,1730476234507,-1779.09,0.00042739,3]
[341150430,1730476234517,-500.0,0.00042739,3]
[341150431,1730476234527,-1000.0,0.00042871,2]
[341150432,1730476234536,-164.61,0.00042882,120]
[341150433,1730476234546,-835.45,0.00042946,2]
[341150434,1730476234556,-500.0,0.00043013,3]
[341150435,1730476234565,-964.0,0.00043013,3]
[341150436,1730476234575,-519.80465202,0.00043013,3]
[341150437,1730476234585,-500.0,0.00043013,3]
[341150438,1730476234597,-500.0,0.00043013,3]
[341150439,1730476234617,-500.0,0.00043013,3]
[341150440,1730476234627,-620.47,0.00043013,3]
[341150441,1730476234636,-1779.09,0.00043013,3]
[341150442,1730476234645,-500.0,0.00043013,3]
[341150443,1730476234655,-3463.6433,0.00043125,2]
[341150444,1730476234665,-4824.8798,0.00043125,2]
[341150445,1730476234675,-162.09,0.00043149,120]
[341150446,1730476234685,-323.359,0.000432,2]
[341150447,1730476234695,-9310.31872738,0.00043223,7]
[341150448,1730476234704,-500.0,0.00043287,3]
[341150449,1730476234714,-964.0,0.00043287,3]
[341150450,1730476234724,-500.0,0.00043287,3]
[341150451,1730476234734,-500.0,0.00043287,3]
[341150452,1730476234743,-500.0,0.00043287,3]
[341150453,1730476234753,-1779.09,0.00043287,3]
[341150454,1730476234762,-500.0,0.00043287,3]
[341150455,1730476234771,-500.0,0.00043373,10]
[341150456,1730476234781,-475.70345147,0.00043373,2]
[341150457,1730476234790,-182.52498347,0.00043373,3]
[341150458,1730476234800,-500.0,0.00043373,10]
[341150459,1730476234810,-500.0,0.00043373,5]
[341150460,1730476234819,-500.0,0.00043373,10]
[341150461,1730476234828,-500.0,0.00043373,10]
[341150462,1730476234838,-343.05484251,0.00043379,3]
[341150463,1730476234847,-534.77130645,0.00043379,3]
[341150464,1730476234857,-523.32356563,0.00043379,3]
[341150465,1730476234870,-523.80819508,0.00043379,3]
[341150466,1730476234879,-174.56842566,0.00043379,3]
[341150467,1730476234888,-500.0,0.00043379,3]
[341150468,1730476234898,-500.0,0.00043379,3]
[341150469,1730476234907,-632.03802607,0.00043379,2]
[341150470,1730476234916,-500.0,0.00043379,3]
[341150471,1730476234926,-500.0,0.00043379,3]
[341150472,1730476234935,-154.12277279,0.00043379,2]
[341150473,1730476234945,-500.0,0.00043379,2]
[341150474,1730476234954,-522.84319844,0.00043379,3]
[341150475,1730476234963,-500.0,0.00043379,3]
[341150476,1730476234972,-500.0,0.00043379,3]
[341150477,1730476234982,-500.0,0.00043379,3]
[341150478,1730476234991,-500.0,0.00043379,3]
[341150479,1730476235001,-507.06625119,0.00043379,3]
[341150480,1730476235010,-500.0,0.00043379,3]
[341150481,1730476235019,-502.91536559,0.00043379,3]
[341150482,1730476235029,-508.95727014,0.00043379,3]
[341150483,1730476235038,-500.0,0.00043379,3]
[341150484,1730476235048,-500.29720017,0.00043379,3]
[341150485,1730476235057,-500.0,0.00043379,3]
[341150486,1730476235066,-500.0,0.00043379,3]
[341150487,1730476235075,-231.14030069,0.00043379,3]
[341150488,1730476235085,-505.74830075,0.00043379,3]
[341150489,1730476235094,-513.19496194,0.00043379,3]
[341150490,1730476235103,-505.12512294,0.00043379,3]
[341150491,1730476235113,-513.3795113,0.00043379,3]
[341150492,1730476235126,-512.20818953,0.00043379,3]
[341150493,1730476235135,-502.97590224,0.00043379,3]
[341150494,1730476235145,-524.70757852,0.00043379,3]
[341150495,1730476235154,-500.0,0.00043379,3]
[341150496,1730476235163,-522.81303177,0.00043379,3]
[341150497,1730476235173,-500.0,0.00043379,3]
[341150498,1730476235183,-546.52566071,0.00043379,3]
[341150499,1730476235192,-500.0,0.00043379,3]
[341150500,1730476235202,-503.48457066,0.00043379,3]
[341150501,1730476235211,-500.0,0.00043379,3]
[341150502,1730476235220,-541.03083845,0.00043379,3]
[341150503,1730476235229,-500.0,0.00043379,3]
[341150504,1730476235238,-511.07115417,0.00043379,3]
[341150505,1730476235247,-531.61752381,0.00043379,3]
[341150506,1730476235257,-1031.98298069,0.00043379,10]
[341150507,1730476235267,-504.2112071,0.00043379,3]
[341150508,1730476235276,-509.87155923,0.00043379,3]
[341150509,1730476235285,-500.0,0.00043379,3]
[341150510,1730476235295,-474.03424708,0.00043379,3]
[341150511,1730476235305,-513.61609164,0.00043379,3]
[341150512,1730476235315,-500.0,0.00043379,3]
[341150513,1730476235324,-500.0,0.00043379,3]
[341150514,1730476235333,-530.3097226,0.00043379,3]
[341150515,1730476235343,-538.11311104,0.00043379,3]
[341150516,1730476235352,-216.56526726,0.00043379,3]
[341150517,1730476235361,-314.97148698,0.00043379,3]
[341150518,1730476235374,-512.91526975,0.00043379,3]
[341150519,1730476235383,-511.43241971,0.00043379,3]
[341150520,1730476235393,-517.01784632,0.00043379,3]
[341150521,1730476235402,-500.0,0.00043379,3]
[341150522,1730476235412,-500.0,0.00043379,3]
[341150523,1730476235423,-514.49350586,0.00043379,3]
[341150524,1730476235433,-500.0,0.00043379,3]
[341150525,1730476235442,-513.25962721,0.00043379,3]
[341150526,1730476235454,-401.38554081,0.00043379,3]
[341150527,1730476235463,-504.85805987,0.00043379,3]
[341150528,1730476235473,-545.08227637,0.00043379,3]
[341150529,1730476235482,-500.0,0.00043379,3]
[341150530,1730476235491,-500.0,0.00043379,3]
[341150531,1730476235501,-500.0,0.00043379,3]
[341150532,1730476235511,-509.34563338,0.00043379,3]
[341150533,1730476235521,-517.34473933,0.00043379,3]
[341150534,1730476235531,-500.0,0.00043379,3]
[341150535,1730476235540,-503.74148465,0.00043379,3]
[341150536,1730476235549,-503.96400884,0.00043379,3]
[341150537,1730476235559,-500.0,0.00043379,3]
[341150538,1730476235569,-500.0,0.00043379,3]
[341150539,1730476235578,-340.53240125,0.00043379,3]
[341150540,1730476235588,-637.42540663,0.00043379,3]
[341150541,1730476235598,-531.14009876,0.00043379,3]
[341150542,1730476235607,-1004.50321836,0.00043379,3]
[341150543,1730476235619,-449.80504826,0.00043379,3]
[341150544,1730476235630,-528.00686167,0.00043379,3]
[341150545,1730476235643,-500.0,0.00043379,3]
[341150546,1730476235653,-527.70606387,0.00043379,3]
[341150547,1730476235662,-500.0,0.00043379,3]
[341150548,1730476235671,-553.34863084,0.00043379,3]
[341150549,1730476235680,-501.33022825,0.00043379,3]
[341150550,1730476235690,-500.0,0.00043379,3]
[341150551,1730476235699,-500.0,0.00043379,3]
[341150552,1730476235708,-541.24300525,0.00043379,3]
[341150553,1730476235717,-500.0,0.00043379,3]
[341150554,1730476235726,-500.0,0.00043379,3]
[341150555,1730476235735,-496.39526494,0.00043379,3]
[341150556,1730476235745,-500.0,0.00043379,3]
[341150557,1730476235754,-566.75435149,0.00043379,3]
[341150558,1730476235763,-500.0,0.00043379,3]
[341150559,1730476235772,-577.9111099,0.00043379,3]
[341150560,1730476235782,-500.0,0.00043379,3]
[341150561,1730476235791,-500.0,0.00043379,3]
[341150562,1730476235800,-507.11769725,0.00043379,3]
[341150563,1730476235812,-506.60661462,0.00043379,3]
[341150564,1730476235821,-500.0,0.00043379,3]
[341150565,1730476235830,-500.0,0.00043379,3]
[341150566,1730476235839,-500.0,0.00043379,3]
[341150567,1730476235848,-500.0,0.00043379,3]
[341150568,1730476235858,-518.82134102,0.00043379,3]
[341150569,1730476235867,-500.0,0.00043379,3]
[341150570,1730476235877,-520.90537415,0.00043379,3]
[341150571,1730476235886,-500.0,0.00043379,7]
[341150572,1730476235895,-500.0,0.00043379,3]
[341150573,1730476235904,-500.0,0.00043379,3]
[341150574,1730476235914,-241.98682796,0.00043379,3]
[341150575,1730476235923,-500.0,0.00043379,3]
[341150576,1730476235932,-483.56317204,0.00043379,3]
[341150577,1730476235941,-500.0,0.00043379,3]
[341150578,1730476235951,-504.68028113,0.00043379,3]
[341150579,1730476235961,-500.0,0.00043379,3]
[341150580,1730476235971,-505.48897695,0.00043379,3]
[341150581,1730476235981,-507.23212221,0.00043379,3]
[341150582,1730476235990,-504.14761368,0.00043379,3]
[341150583,1730476236000,-500.0,0.00043379,3]
[341150584,1730476236009,-500.0,0.00043379,3]
[341150585,1730476236019,-500.0,0.00043379,3]
[341150586,1730476236028,-506.98461778,0.00043379,3]
[341150587,1730476236038,-500.0,0.00043379,3]
[341150588,1730476236047,-629.73,0.00043379,3]
[341150589,1730476236056,-500.0,0.00043379,3]
[341150590,1730476236066,-500.0,0.00043379,3]
[341150591,1730476236076,-500.0,0.00043379,3]
[341150592,1730476236086,-514.27739116,0.00043379,3]
[341150593,1730476236095,-500.0,0.00043379,3]
[341150594,1730476236105,-500.0,0.00043379,3]
[341150595,1730476236114,-559.44,0.00043379,3]
[341150596,1730476236127,-500.0,0.00043379,3]
[341150597,1730476236137,-500.0,0.00043379,3]
[341150598,1730476236146,-500.0,0.00043379,3]
[341150599,1730476236156,-500.0,0.00043379,3]
[341150600,1730476236165,-215.14,0.00043379,3]
[341150601,1730476236174,-500.0,0.00043379,3]
[341150602,1730476236184,-151.0,0.00043379,14]
[341150603,1730476236193,-151.0,0.00043379,14]
[341150604,1730476236202,-500.0,0.00043379,3]
[341150605,1730476236211,-500.0,0.00043379,3]
[341150606,1730476236221,-161.081987,0.00043379,14]
[341150607,1730476236230,-526.13266898,0.00043379,3]
[341150608,1730476236239,-500.0,0.00043379,3]
[341150609,1730476236248,-500.0,0.00043379,3]
[341150610,1730476236257,-500.0,0.00043379,3]
[341150611,1730476236267,-500.0,0.00043379,3]
[341150612,1730476236276,-500.0,0.00043379,3]
[341150613,1730476236286,-151.0,0.00043379,14]
[341150614,1730476236295,-563.46,0.00043379,3]
[341150615,1730476236306,-500.0,0.00043379,3]
[341150616,1730476236317,-500.0,0.00043379,3]
[341150617,1730476236326,-500.0,0.00043379,3]
[341150618,1730476236337,-500.0,0.00043379,3]
[341150619,1730476236350,-500.0,0.00043379,3]
[341150620,1730476236359,-456.88,0.00043379,3]
[341150621,1730476236373,-259.36890869,0.00043379,3]
[341150622,1730476236382,-500.0,0.00043379,3]
[341150623,1730476236392,-500.0,0.00043379,3]
[341150624,1730476236401,-500.0,0.00043379,3]
[341150625,1730476236411,-151.0,0.00043379,14]
[341150626,1730476236423,-500.0,0.00043379,3]
[341150627,1730476236434,-500.0,0.00043379,3]
[341150628,1730476236443,-503.5,0.00043379,3]
[341150629,1730476236453,-151.0,0.00043379,14]
[341150630,1730476236463,-151.0,0.00043379,14]
[341150631,1730476236472,-500.0,0.00043379,3]
[341150632,1730476236481,-500.0,0.00043379,3]
[341150633,1730476236491,-151.0,0.00043379,14]
[341150634,1730476236500,-500.84299427,0.00043379,3]
[341150635,1730476236509,-500.0,0.00043379,3]
[341150636,1730476236520,-158.356863,0.00043379,14]
[341150637,1730476236529,-500.0,0.00043379,3]
[341150638,1730476236538,-500.0,0.00043379,3]
[341150639,1730476236548,-500.0,0.00043379,3]
[341150640,1730476236558,-500.0,0.00043379,3]
[341150641,1730476236568,-186.879919,0.00043379,14]
[341150642,1730476236578,-500.0,0.00043379,3]
[341150643,1730476236587,-500.0,0.00043379,3]
[341150644,1730476236598,-500.0,0.00043379,3]
[341150645,1730476236607,-300.0,0.00043379,3]
[341150646,1730476236622,-500.0,0.00043379,3]
[341150647,1730476236631,-500.0,0.00043379,3]
[341150648,1730476236640,-500.0,0.00043379,3]
[341150649,1730476236650,-500.0,0.00043379,3]
[341150650,1730476236660,-151.0,0.00043379,14]
[341150651,1730476236669,-500.0,0.00043379,3]
[341150652,1730476236679,-500.0,0.00043379,3]
[341150653,1730476236689,-500.0,0.00043379,3]
[341150654,1730476236699,-151.0,0.00043379,14]
[341150656,1730476236708,-500.0,0.00043379,3]
[341150658,1730476236718,-500.0,0.00043379,3]
[341150660,1730476236728,-542.53,0.00043379,3]
[341150662,1730476236737,-515.57273138,0.00043379,3]
[341150663,1730476236747,-151.0,0.00043379,7]
[341150664,1730476236756,-151.0,0.00043379,7]
[341150665,1730476236766,-500.0,0.00043379,3]
[341150666,1730476236775,-374.32044976,0.00043379,3]
[341150667,1730476236784,-500.0,0.00043379,3]
[341150668,1730476236793,-500.0,0.00043379,3]
[341150669,1730476236803,-500.0,0.00043379,3]
[341150670,1730476236813,-500.0,0.00043379,3]
[341150671,1730476236822,-500.0,0.00043379,3]
[341150672,1730476236832,-509.5840486,0.00043379,3]
[341150673,1730476236842,-151.0,0.00043379,14]
[341150674,1730476236852,-500.0,0.00043379,3]
[341150675,1730476236862,-500.0,0.00043379,3]
[341150676,1730476236874,-531.94995005,0.00043379,3]
[341150677,1730476236883,-523.29065192,0.00043379,3]
[341150678,1730476236892,-151.0,0.00043379,14]
[341150679,1730476236902,-500.0,0.00043379,3]
[341150680,1730476236911,-500.0,0.00043379,3]
[341150681,1730476236920,-500.0,0.00043379,3]
[341150682,1730476236931,-500.0,0.00043379,3]
[341150683,1730476236940,-500.0,0.00043379,3]
[341150684,1730476236950,-500.0,0.00043379,3]
[341150685,1730476236961,-500.0,0.00043379,3]
[341150686,1730476236970,-500.0,0.00043379,3]
[341150687,1730476236980,-500.0,0.00043379,3]
[341150688,1730476236989,-500.0,0.00043379,3]
[341150689,1730476236999,-500.0,0.00043379,3]
[341150690,1730476237008,-151.0,0.00043379,14]
[341150691,1730476237018,-444.28902484,0.00043379,3]
[341150692,1730476237028,-500.0,0.00043379,3]
[341150693,1730476237038,-500.0,0.00043379,3]
[341150694,1730476237047,-500.0,0.00043379,3]
[341150695,1730476237057,-500.0,0.00043379,3]
[341150696,1730476237065,-500.0,0.00043379,3]
[341150697,1730476237074,-500.0,0.00043379,3]
[341150698,1730476237084,-653.42,0.00043379,3]
[341150699,1730476237093,-500.0,0.00043379,3]
[341150700,1730476237102,-500.0,0.00043379,3]
[341150701,1730476237111,-500.0,0.00043379,3]
[341150702,1730476237124,-151.0,0.00043379,14]
[341150703,1730476237134,-500.0,0.00043379,3]
[341150704,1730476237143,-500.0,0.00043379,3]
[341150705,1730476237153,-837.96,0.00043379,3]
[341150706,1730476237162,-154.407897,0.00043379,14]
[341150707,1730476237172,-500.0,0.00043379,3]
[341150708,1730476237182,-500.0,0.00043379,3]
[341150709,1730476237192,-500.0,0.00043379,3]
[341150710,1730476237203,-500.0,0.00043379,3]
[341150711,1730476237212,-500.0,0.00043379,3]
[341150712,1730476237222,-500.0,0.00043379,3]
[341150713,1730476237231,-500.0,0.00043379,3]
[341150714,1730476237242,-329.4001171,0.00043379,2]
[341150715,1730476237251,-500.0,0.00043379,3]
[341150716,1730476237261,-500.0,0.00043379,3]
[341150717,1730476237271,-500.0,0.00043379,3]
[341150718,1730476237281,-500.0,0.00043379,3]
[341150719,1730476237291,-500.0,0.00043379,3]
[341150720,1730476237301,-500.0,0.00043379,3]
[341150721,1730476237310,-500.0,0.00043379,3]
[341150722,1730476237319,-586.39253436,0.00043379,3]
[341150723,1730476237329,-151.0,0.00043379,14]
[341150724,1730476237339,-500.0,0.00043379,3]
[341150725,1730476237349,-500.0,0.00043379,3]
[341150726,1730476237358,-500.0,0.00043379,3]
[341150727,1730476237370,-500.0,0.00043379,3]
[341150728,1730476237379,-189.877343,0.00043379,14]
[341150729,1730476237389,-500.0,0.00043379,3]
[341150730,1730476237398,-151.0,0.00043379,14]
[341150731,1730476237408,-500.0,0.00043379,3]
[341150732,1730476237419,-500.0,0.00043379,3]
[341150733,1730476237431,-500.0,0.00043379,3]
[341150734,1730476237441,-200.0,0.00043379,3]
[341150735,1730476237450,-500.0,0.00043379,3]
[341150736,1730476237462,-500.0,0.00043379,3]
[341150737,1730476237471,-500.0,0.00043379,3]
[341150738,1730476237481,-500.0,0.00043379,3]
[341150739,1730476237491,-500.0,0.00043379,3]
[341150740,1730476237502,-500.0,0.00043379,3]
[341150741,1730476237511,-159.98970082,0.00043379,3]
[341150742,1730476237521,-500.0,0.00043379,3]
[341150743,1730476237531,-507.28028976,0.00043379,3]
[341150744,1730476237540,-151.0,0.00043379,7]
[341150745,1730476237550,-500.0,0.00043379,3]
[341150746,1730476237559,-500.0,0.00043379,3]
[341150747,1730476237569,-500.0,0.00043379,3]
[341150748,1730476237578,-663.46,0.00043379,3]
[341150749,1730476237588,-151.08961779,0.00043379,3]
[341150750,1730476237597,-500.0,0.00043379,3]
[341150751,1730476237607,-500.0,0.00043379,3]
[341150752,1730476237620,-303.18429917,0.00043379,3]
[341150754,1730476237629,-500.0,0.00043379,3]
[341150755,1730476237639,-500.0,0.00043379,3]
[341150756,1730476237649,-500.0,0.00043379,3]
[341150757,1730476237658,-500.0,0.00043379,3]
[341150758,1730476237668,-500.0,0.00043379,3]
[341150759,1730476237677,-151.0,0.00043379,14]
[341150760,1730476237687,-500.0,0.00043379,3]
[341150761,1730476237697,-500.0,0.00043379,3]
[341150762,1730476237706,-311.07486428,0.00043379,3]
[341150763,1730476237716,-456.445455,0.00043379,14]
[341150764,1730476237725,-456.445455,0.00043379,14]
[341150765,1730476237735,-436.81402729,0.00043379,3]
[341150766,1730476237745,-293.27907546,0.00043379,3]
[341150767,1730476237754,-151.0,0.00043379,14]
[341150768,1730476237764,-500.0,0.00043379,3]
[341150769,1730476237773,-458.726091,0.00043379,14]
[341150770,1730476237783,-500.0,0.00043379,3]
[341150771,1730476237792,-458.726091,0.00043379,14]
[341150772,1730476237802,-500.0,0.00043379,3]
[341150773,1730476237811,-500.0,0.00043379,3]
[341150775,1730476237943,-151.0,0.00043379,14]
[341150776,1730476237953,-500.0,0.00043379,3]
[341150777,1730476237964,-500.0,0.00043379,3]
[341150778,1730476237974,-500.0,0.00043379,3]
[341150779,1730476237983,-151.0,0.00043379,14]
[341150780,1730476237993,-500.0,0.00043379,3]
[341150781,1730476238003,-500.0,0.00043379,3]
[341150782,1730476238013,-500.0,0.00043379,3]
[341150783,1730476238022,-635.18,0.00043379,3]
[341150784,1730476238031,-151.0,0.00043379,14]
[341150785,1730476238041,-500.0,0.00043379,3]
[341150786,1730476238051,-151.0,0.00043379,14]
[341150787,1730476238060,-500.0,0.00043379,3]
[341150788,1730476238070,-500.0,0.00043379,3]
[341150789,1730476238079,-151.0,0.00043379,14]
[341150790,1730476238088,-500.0,0.00043379,3]
[341150791,1730476238098,-500.0,0.00043379,3]
[341150792,1730476238108,-500.0,0.00043379,3]
[341150793,1730476238121,-500.0,0.00043379,3]
[341150794,1730476238130,-500.0,0.00043379,3]
[341150795,1730476238140,-521.179929,0.00043379,14]
[341150796,1730476238149,-500.0,0.00043379,3]
[341150797,1730476238158,-500.0,0.00043379,3]
[341150798,1730476238168,-500.0,0.00043379,3]
[341150799,1730476238178,-500.0,0.00043379,3]
[341150800,1730476238187,-500.0,0.00043379,3]
[341150801,1730476238197,-500.0,0.00043379,3]
[341150802,1730476238206,-500.0,0.00043379,3]
[341150803,1730476238215,-500.0,0.00043379,3]
[341150804,1730476238225,-500.0,0.00043379,3]
[341150805,1730476238235,-500.0,0.00043379,3]
[341150806,1730476238244,-500.0,0.00043379,3]
[341150807,1730476238254,-500.0,0.00043379,30]
[341150808,1730476238262,-323.374,0.0004348,7]
[341150809,1730476238272,-212.772625,0.00043553,120]
[341150810,1730476238281,-500.0,0.00043561,3]
[341150811,1730476238290,-964.0,0.00043561,3]
[341150812,1730476238299,-500.0,0.00043561,3]
[341150813,1730476238309,-252.53291088,0.00043561,3]
[341150814,1730476238319,-500.0,0.00043561,3]
[341150815,1730476238328,-1779.09,0.00043561,3]
[341150816,1730476238337,-335.67681397,0.00043561,3]
[341150817,1730476238347,-426.15752818,0.00043643,2]
[341150818,1730476238356,-500.0,0.00043653,3]
[341150819,1730476238366,-611.22424276,0.00043653,2]
[341150820,1730476238384,-500.0,0.00043653,3]
[341150821,1730476238394,-500.0,0.00043653,3]
[341150822,1730476238403,-500.0,0.00043653,3]
[341150823,1730476238416,-500.0,0.00043653,3]
[341150824,1730476238426,-500.0,0.00043653,3]
[341150825,1730476238436,-500.0,0.00043653,3]
[341150827,1730476238446,-500.0,0.00043653,3]
[341150829,1730476238458,-500.0,0.00043653,3]